[Event "Titled Tuesday Blitz September 14 2021"]
[White "Godzwon, Iwo"]
[Black "Andreikin, Dmitry"]
[WhiteFideId "21802483"]
[BlackFideId "4158814"]
[WhiteElo "2201"]
[BlackElo "2736"]
[Result "0-1"]
[Round "02"]
[TimeControl "180+1"]
[Date "2021.09.15"]
[WhiteClock "0:00:14"]
[BlackClock "0:00:19"]

1. e4 {[%clk 0:02:42]}  c5 {[%clk 0:03:00]} 2. Nf3 {[%clk 0:02:41]}  Nc6 {[%clk 0:03:00]} 3. d4 {[%clk 0:02:41]}  cxd4 {[%clk 0:03:01]} 4. Nxd4 {[%clk 0:02:42]}  Qb6 {[%clk 0:03:01]} 5. Nb3 {[%clk 0:02:41]}  Nf6 {[%clk 0:03:02]} 6. Bd3 {[%clk 0:02:41]}  e6 {[%clk 0:03:02]} 7. O-O {[%clk 0:02:41]}  a6 {[%clk 0:03:03]} 8. Qe2 {[%clk 0:02:42]}  d6 {[%clk 0:03:03]} 9. Kh1 {[%clk 0:02:42]}  h5 {[%clk 0:02:55]} 10. Nc3 {[%clk 0:02:34]}  h4 {[%clk 0:02:55]} 11. h3 {[%clk 0:02:24]}  Ne5 {[%clk 0:02:55]} 12. Be3 {[%clk 0:02:21]}  Qc7 {[%clk 0:02:54]} 13. f4 {[%clk 0:02:20]}  Nh5 {[%clk 0:02:54]} 14. Qf2 {[%clk 0:02:10]}  Ng3+ {[%clk 0:02:54]} 15. Kg1 {[%clk 0:02:09]}  Nxd3 {[%clk 0:02:54]} 16. cxd3 {[%clk 0:02:09]}  Nxf1 {[%clk 0:02:55]} 17. Rxf1 {[%clk 0:02:10]}  Be7 {[%clk 0:02:49]} 18. f5 {[%clk 0:02:10]}  Bf6 {[%clk 0:02:42]} 19. Bd4 {[%clk 0:01:59]}  Qe7 {[%clk 0:02:38]} 20. Na5 {[%clk 0:01:52]}  O-O {[%clk 0:02:31]} 21. Nc4 {[%clk 0:01:38]}  b5 {[%clk 0:02:30]} 22. Bxf6 {[%clk 0:01:31]}  Qxf6 {[%clk 0:02:27]} 23. Nxd6 {[%clk 0:01:31]}  b4 {[%clk 0:02:20]} 24. Na4 {[%clk 0:01:19]}  exf5 {[%clk 0:02:19]} 25. Nb6 {[%clk 0:01:09]}  Qxd6 {[%clk 0:02:19]} 26. Nxa8 {[%clk 0:01:10]}  fxe4 {[%clk 0:02:16]} 27. dxe4 {[%clk 0:01:08]}  Bb7 {[%clk 0:02:14]} 28. Nb6 {[%clk 0:01:07]}  Bxe4 {[%clk 0:02:14]} 29. Nc4 {[%clk 0:01:07]}  Qe6 {[%clk 0:02:13]} 30. b3 {[%clk 0:01:04]}  Qg6 {[%clk 0:01:56]} 31. Ne5 {[%clk 0:00:58]}  Qg5 {[%clk 0:01:56]} 32. Nf3 {[%clk 0:00:56]}  Bxf3 {[%clk 0:01:53]} 33. Qxf3 {[%clk 0:00:57]}  a5 {[%clk 0:01:48]} 34. Qf5 {[%clk 0:00:52]}  Qe3+ {[%clk 0:01:42]} 35. Kh1 {[%clk 0:00:50]}  Qe2 {[%clk 0:01:41]} 36. Rf2 {[%clk 0:00:48]}  Qe1+ {[%clk 0:01:38]} 37. Rf1 {[%clk 0:00:48]}  Qe2 {[%clk 0:01:38]} 38. Rf2 {[%clk 0:00:48]}  Qe3 {[%clk 0:01:38]} 39. Rf3 {[%clk 0:00:44]}  Qb6 {[%clk 0:01:31]} 40. Rf4 {[%clk 0:00:43]}  g6 {[%clk 0:01:26]} 41. Qd5 {[%clk 0:00:37]}  Qe3 {[%clk 0:01:26]} 42. Rf3 {[%clk 0:00:32]}  Qe2 {[%clk 0:01:11]} 43. Qxa5 {[%clk 0:00:29]}  Qd1+ {[%clk 0:01:10]} 44. Kh2 {[%clk 0:00:29]}  Qd6+ {[%clk 0:01:10]} 45. Kg1 {[%clk 0:00:26]}  Re8 {[%clk 0:01:03]} 46. Qb5 {[%clk 0:00:18]}  Re5 {[%clk 0:00:40]} 47. Qc4 {[%clk 0:00:15]}  Re1+ {[%clk 0:00:39]} 48. Rf1 {[%clk 0:00:15]}  Qb6+ {[%clk 0:00:37]} 49. Kh2 {[%clk 0:00:14]}  Rxf1 {[%clk 0:00:31]} 50. Qxf1 {[%clk 0:00:15]}  Qc7+ {[%clk 0:00:31]} 51. Kh1 {[%clk 0:00:16]}  Qc2 {[%clk 0:00:30]} 52. Qb5 {[%clk 0:00:13]}  Qd2 {[%clk 0:00:27]} 53. Qe8+ {[%clk 0:00:12]}  Kg7 {[%clk 0:00:27]} 54. Qe5+ {[%clk 0:00:13]}  Kh7 {[%clk 0:00:28]} 55. Qf6 {[%clk 0:00:13]}  Qe1+ {[%clk 0:00:22]} 56. Kh2 {[%clk 0:00:13]}  Kg8 {[%clk 0:00:23]} 57. Qf4 {[%clk 0:00:12]}  Kg7 {[%clk 0:00:21]} 58. Qd4+ {[%clk 0:00:12]}  f6 {[%clk 0:00:22]} 59. Qd7+ {[%clk 0:00:12]}  Kh6 {[%clk 0:00:22]} 60. Qd8 {[%clk 0:00:11]}  Kg5 {[%clk 0:00:21]} 61. Qd5+ {[%clk 0:00:10]}  Qe5+ {[%clk 0:00:21]} 62. Qxe5+ {[%clk 0:00:11]}  fxe5 {[%clk 0:00:22]} 63. Kg1 {[%clk 0:00:12]}  Kf4 {[%clk 0:00:22]} 64. Kf2 {[%clk 0:00:13]}  e4 {[%clk 0:00:20]} 65. Ke2 {[%clk 0:00:13]}  Kg3 {[%clk 0:00:20]} 66. Kf1 {[%clk 0:00:14]}  e3 {[%clk 0:00:19]} 0-1


[Site "https://www.chess.com"]

[Event "Titled Tuesday Blitz September 14 2021"]
[White "Hansen, Eric"]
[Black "Cunha, Lucas Aguiar"]
[WhiteFideId "2606771"]
[BlackFideId "2125404"]
[WhiteElo "2568"]
[BlackElo "2361"]
[Result "1-0"]
[Round "02"]
[TimeControl "180+1"]
[Date "2021.09.15"]
[WhiteClock "0:00:05"]
[BlackClock "0:00:02"]

1. c4 {[%clk 0:02:58]}  e6 {[%clk 0:02:59]} 2. Nc3 {[%clk 0:02:52]}  d5 {[%clk 0:02:59]} 3. d4 {[%clk 0:02:51]}  c6 {[%clk 0:02:59]} 4. e3 {[%clk 0:02:48]}  Nf6 {[%clk 0:02:59]} 5. Nf3 {[%clk 0:02:46]}  Nbd7 {[%clk 0:02:59]} 6. Bd3 {[%clk 0:02:45]}  dxc4 {[%clk 0:02:59]} 7. Bxc4 {[%clk 0:02:46]}  b5 {[%clk 0:03:00]} 8. Bd3 {[%clk 0:02:46]}  a6 {[%clk 0:03:00]} 9. O-O {[%clk 0:02:45]}  c5 {[%clk 0:02:59]} 10. b3 {[%clk 0:02:24]}  Bb7 {[%clk 0:02:59]} 11. Bb2 {[%clk 0:02:24]}  Rc8 {[%clk 0:02:57]} 12. Rc1 {[%clk 0:02:24]}  Qa5 {[%clk 0:02:53]} 13. a4 {[%clk 0:02:24]}  b4 {[%clk 0:02:31]} 14. Nb1 {[%clk 0:02:23]}  Be7 {[%clk 0:02:25]} 15. Nbd2 {[%clk 0:02:22]}  O-O {[%clk 0:02:19]} 16. Qe2 {[%clk 0:02:22]}  cxd4 {[%clk 0:02:13]} 17. Nc4 {[%clk 0:01:52]}  Qh5 {[%clk 0:02:11]} 18. Nxd4 {[%clk 0:01:49]}  Qh6 {[%clk 0:02:04]} 19. Na5 {[%clk 0:01:39]}  Bd6 {[%clk 0:01:54]} 20. h3 {[%clk 0:01:37]}  Ba8 {[%clk 0:01:42]} 21. Nac6 {[%clk 0:01:06]}  Nc5 {[%clk 0:01:30]} 22. Nxb4 {[%clk 0:00:45]}  Nxd3 {[%clk 0:01:01]} 23. Nxd3 {[%clk 0:00:43]}  Qg6 {[%clk 0:01:01]} 24. Ne1 {[%clk 0:00:27]}  e5 {[%clk 0:00:47]} 25. Ndf3 {[%clk 0:00:22]}  Rxc1 {[%clk 0:00:45]} 26. Bxc1 {[%clk 0:00:22]}  a5 {[%clk 0:00:41]} 27. Bb2 {[%clk 0:00:20]}  Re8 {[%clk 0:00:35]} 28. Qb5 {[%clk 0:00:19]}  Bb4 {[%clk 0:00:24]} 29. Bxe5 {[%clk 0:00:16]}  Rf8 {[%clk 0:00:14]} 30. Bf4 {[%clk 0:00:09]}  Ne4 {[%clk 0:00:14]} 31. Ne5 {[%clk 0:00:07]}  Qe6 {[%clk 0:00:12]} 32. N1f3 {[%clk 0:00:07]}  h6 {[%clk 0:00:10]} 33. Nd4 {[%clk 0:00:07]}  Qf6 {[%clk 0:00:08]} 34. Nd7 {[%clk 0:00:07]}  Qg6 {[%clk 0:00:06]} 35. Nxf8 {[%clk 0:00:07]}  Bxf8 {[%clk 0:00:06]} 36. Qf5 {[%clk 0:00:06]}  Qb6 {[%clk 0:00:05]} 37. Rc1 {[%clk 0:00:05]}  Qb7 {[%clk 0:00:03]} 38. Qc8 {[%clk 0:00:05]}  Nf6 {[%clk 0:00:03]} 39. Qxb7 {[%clk 0:00:05]}  Bxb7 {[%clk 0:00:04]} 40. Rc7 {[%clk 0:00:05]}  Bd5 {[%clk 0:00:05]} 41. Rc8 {[%clk 0:00:05]}  Nd7 {[%clk 0:00:03]} 42. Bd6 {[%clk 0:00:05]}  g5 {[%clk 0:00:03]} 43. Rd8 {[%clk 0:00:05]}  Kg7 {[%clk 0:00:02]} 44. Rxd7 {[%clk 0:00:05]} 1-0


[Site "https://www.chess.com"]

[Event "Titled Tuesday Blitz September 14 2021"]
[White "Jones, Gawain C B"]
[Black "Oganisian, Roman"]
[WhiteFideId "409561"]
[BlackFideId "4153006"]
[WhiteElo "2657"]
[BlackElo "2204"]
[Result "1-0"]
[Round "02"]
[TimeControl "180+1"]
[Date "2021.09.15"]
[WhiteClock "0:00:49"]
[BlackClock "0:00:05"]

1. Nf3 {[%clk 0:03:00]}  e6 {[%clk 0:02:59]} 2. g3 {[%clk 0:02:59]}  f5 {[%clk 0:02:59]} 3. Bg2 {[%clk 0:02:54]}  Nf6 {[%clk 0:02:59]} 4. O-O {[%clk 0:02:55]}  Be7 {[%clk 0:02:58]} 5. d3 {[%clk 0:02:54]}  O-O {[%clk 0:02:58]} 6. Nbd2 {[%clk 0:02:52]}  d6 {[%clk 0:02:57]} 7. e4 {[%clk 0:02:51]}  fxe4 {[%clk 0:02:55]} 8. Nxe4 {[%clk 0:02:49]}  Nxe4 {[%clk 0:02:54]} 9. dxe4 {[%clk 0:02:49]}  e5 {[%clk 0:02:54]} 10. Be3 {[%clk 0:02:48]}  c6 {[%clk 0:02:48]} 11. c4 {[%clk 0:02:40]}  Qe8 {[%clk 0:02:42]} 12. c5 {[%clk 0:02:37]}  Bg4 {[%clk 0:02:29]} 13. cxd6 {[%clk 0:02:33]}  Bxd6 {[%clk 0:02:23]} 14. Qxd6 {[%clk 0:02:25]}  Bxf3 {[%clk 0:02:23]} 15. Bxf3 {[%clk 0:02:02]}  Rxf3 {[%clk 0:02:23]} 16. Rfd1 {[%clk 0:01:53]}  Na6 {[%clk 0:02:04]} 17. Qd7 {[%clk 0:01:41]}  Qf7 {[%clk 0:01:29]} 18. Qxf7+ {[%clk 0:01:26]}  Rxf7 {[%clk 0:01:28]} 19. Rd6 {[%clk 0:01:26]}  Nc7 {[%clk 0:01:22]} 20. Rad1 {[%clk 0:01:25]}  Nb5 {[%clk 0:01:16]} 21. Rd7 {[%clk 0:01:21]}  Raf8 {[%clk 0:01:00]} 22. f4 {[%clk 0:01:04]}  exf4 {[%clk 0:00:51]} 23. gxf4 {[%clk 0:01:02]}  a6 {[%clk 0:00:45]} 24. Bc5 {[%clk 0:00:52]}  Re8 {[%clk 0:00:11]} 25. Rd8 {[%clk 0:00:50]}  Nc7 {[%clk 0:00:08]} 26. Rxe8+ {[%clk 0:00:49]}  Nxe8 {[%clk 0:00:06]} 27. Rd8 {[%clk 0:00:49]}  Rxf4 {[%clk 0:00:05]} 28. Rxe8+ {[%clk 0:00:49]} 1-0


[Site "https://www.chess.com"]

[Event "Titled Tuesday Blitz September 14 2021"]
[White "Karttunen, Mika"]
[Black "Zhigalko, Sergei"]
[WhiteFideId "502081"]
[BlackFideId "13502956"]
[WhiteElo "2343"]
[BlackElo "2662"]
[Result "0-1"]
[Round "02"]
[TimeControl "180+1"]
[Date "2021.09.15"]
[WhiteClock "0:00:03"]
[BlackClock "0:00:14"]

1. e4 {[%clk 0:03:00]}  c5 {[%clk 0:03:00]} 2. Nf3 {[%clk 0:03:00]}  Nc6 {[%clk 0:03:00]} 3. d4 {[%clk 0:03:00]}  cxd4 {[%clk 0:03:00]} 4. Nxd4 {[%clk 0:03:00]}  Nf6 {[%clk 0:03:00]} 5. Nc3 {[%clk 0:02:59]}  e5 {[%clk 0:03:01]} 6. Ndb5 {[%clk 0:02:55]}  d6 {[%clk 0:03:01]} 7. Bg5 {[%clk 0:02:47]}  a6 {[%clk 0:03:01]} 8. Na3 {[%clk 0:02:47]}  b5 {[%clk 0:03:01]} 9. Nd5 {[%clk 0:02:46]}  Be7 {[%clk 0:03:01]} 10. Bxf6 {[%clk 0:02:46]}  Bxf6 {[%clk 0:03:01]} 11. c4 {[%clk 0:02:46]}  b4 {[%clk 0:03:00]} 12. Nc2 {[%clk 0:02:46]}  O-O {[%clk 0:03:00]} 13. g3 {[%clk 0:02:43]}  a5 {[%clk 0:03:00]} 14. Bg2 {[%clk 0:02:28]}  Bg5 {[%clk 0:02:58]} 15. O-O {[%clk 0:02:26]}  Ne7 {[%clk 0:02:50]} 16. b3 {[%clk 0:02:05]}  Nxd5 {[%clk 0:02:49]} 17. Qxd5 {[%clk 0:02:05]}  Be6 {[%clk 0:02:50]} 18. Qd3 {[%clk 0:02:05]}  Qb6 {[%clk 0:02:50]} 19. Kh1 {[%clk 0:02:00]}  a4 {[%clk 0:02:00]} 20. f4 {[%clk 0:01:50]}  axb3 {[%clk 0:01:57]} 21. axb3 {[%clk 0:01:35]}  Rxa1 {[%clk 0:01:58]} 22. Nxa1 {[%clk 0:01:35]}  exf4 {[%clk 0:01:46]} 23. gxf4 {[%clk 0:01:35]}  Bf6 {[%clk 0:01:43]} 24. Nc2 {[%clk 0:01:33]}  Bc3 {[%clk 0:01:36]} 25. f5 {[%clk 0:00:32]}  Bc8 {[%clk 0:01:30]} 26. Ne3 {[%clk 0:00:32]}  Bb7 {[%clk 0:01:27]} 27. f6 {[%clk 0:00:24]}  Bxf6 {[%clk 0:01:17]} 28. Rxf6 {[%clk 0:00:24]}  gxf6 {[%clk 0:01:18]} 29. Nf5 {[%clk 0:00:25]}  Qf2 {[%clk 0:01:15]} 30. h3 {[%clk 0:00:19]}  Ra8 {[%clk 0:00:42]} 31. Qxd6 {[%clk 0:00:13]}  Bxe4 {[%clk 0:00:33]} 32. Qg3+ {[%clk 0:00:04]}  Qxg3 {[%clk 0:00:31]} 33. Nxg3 {[%clk 0:00:05]}  Ra1+ {[%clk 0:00:23]} 34. Kh2 {[%clk 0:00:05]}  Bxg2 {[%clk 0:00:23]} 35. Kxg2 {[%clk 0:00:06]}  Ra3 {[%clk 0:00:20]} 36. Nh5 {[%clk 0:00:06]}  Rxb3 {[%clk 0:00:20]} 37. Nxf6+ {[%clk 0:00:07]}  Kg7 {[%clk 0:00:19]} 38. Ne4 {[%clk 0:00:07]}  Rc3 {[%clk 0:00:14]} 39. Nxc3 {[%clk 0:00:03]}  bxc3 {[%clk 0:00:14]} 0-1


[Site "https://www.chess.com"]

[Event "Titled Tuesday Blitz September 14 2021"]
[White "Keymer, Vincent"]
[Black "Silva, Miguel Antonio Neto"]
[WhiteFideId "12940690"]
[BlackFideId "1911929"]
[WhiteElo "2524"]
[BlackElo "2283"]
[Result "1-0"]
[Round "02"]
[TimeControl "180+1"]
[Date "2021.09.15"]
[WhiteClock "0:01:20"]
[BlackClock "0:01:05"]

1. Nf3 {[%clk 0:03:00]}  d5 {[%clk 0:02:58]} 2. e3 {[%clk 0:03:00]}  Nf6 {[%clk 0:02:57]} 3. c4 {[%clk 0:03:00]}  c6 {[%clk 0:02:56]} 4. Nc3 {[%clk 0:03:00]}  e6 {[%clk 0:02:51]} 5. b3 {[%clk 0:02:59]}  Bd6 {[%clk 0:02:49]} 6. Bb2 {[%clk 0:02:58]}  Qe7 {[%clk 0:02:48]} 7. Qc2 {[%clk 0:02:56]}  O-O {[%clk 0:02:48]} 8. Be2 {[%clk 0:02:55]}  b6 {[%clk 0:02:42]} 9. Rg1 {[%clk 0:02:48]}  Nbd7 {[%clk 0:02:38]} 10. g4 {[%clk 0:02:48]}  Bb7 {[%clk 0:02:29]} 11. g5 {[%clk 0:02:47]}  Ne8 {[%clk 0:02:28]} 12. O-O-O {[%clk 0:02:42]}  e5 {[%clk 0:02:17]} 13. h4 {[%clk 0:02:40]}  a5 {[%clk 0:02:09]} 14. h5 {[%clk 0:02:28]}  a4 {[%clk 0:01:55]} 15. bxa4 {[%clk 0:02:14]}  g6 {[%clk 0:01:50]} 16. Kb1 {[%clk 0:02:00]}  e4 {[%clk 0:01:46]} 17. Nd4 {[%clk 0:01:57]}  Be5 {[%clk 0:01:43]} 18. d3 {[%clk 0:01:48]}  exd3 {[%clk 0:01:43]} 19. Bxd3 {[%clk 0:01:44]}  Nc5 {[%clk 0:01:43]} 20. cxd5 {[%clk 0:01:26]}  cxd5 {[%clk 0:01:42]} 21. Bb5 {[%clk 0:01:23]}  Nd6 {[%clk 0:01:39]} 22. Nc6 {[%clk 0:01:22]}  Bxc6 {[%clk 0:01:23]} 23. Bxc6 {[%clk 0:01:23]}  Rfd8 {[%clk 0:01:08]} 24. Bxa8 {[%clk 0:01:20]}  Rxa8 {[%clk 0:01:05]} 25. Nxd5 {[%clk 0:01:20]} 1-0


[Site "https://www.chess.com"]

[Event "Titled Tuesday Blitz September 14 2021"]
[White "King, Alexander"]
[Black "Pridorozhni, Aleksei"]
[WhiteFideId "2063620"]
[BlackFideId "4127870"]
[WhiteElo "2306"]
[BlackElo "2565"]
[Result "1/2-1/2"]
[Round "02"]
[TimeControl "180+1"]
[Date "2021.09.15"]
[WhiteClock "0:01:28"]
[BlackClock "0:02:31"]

1. d4 {[%clk 0:03:00]}  d5 {[%clk 0:02:58]} 2. c4 {[%clk 0:03:00]}  e6 {[%clk 0:02:58]} 3. Nc3 {[%clk 0:02:59]}  c6 {[%clk 0:02:58]} 4. e4 {[%clk 0:02:58]}  dxe4 {[%clk 0:02:58]} 5. Nxe4 {[%clk 0:02:59]}  Bb4+ {[%clk 0:02:58]} 6. Bd2 {[%clk 0:02:59]}  Qxd4 {[%clk 0:02:57]} 7. Bxb4 {[%clk 0:02:59]}  Qxe4+ {[%clk 0:02:58]} 8. Be2 {[%clk 0:03:00]}  Nd7 {[%clk 0:02:57]} 9. Nf3 {[%clk 0:02:55]}  Ne7 {[%clk 0:02:56]} 10. O-O {[%clk 0:02:52]}  c5 {[%clk 0:02:55]} 11. Bc3 {[%clk 0:02:50]}  O-O {[%clk 0:02:55]} 12. Bd3 {[%clk 0:02:49]}  Qg4 {[%clk 0:02:55]} 13. Re1 {[%clk 0:02:42]}  Nf5 {[%clk 0:02:43]} 14. h3 {[%clk 0:02:33]}  Qg6 {[%clk 0:02:41]} 15. g4 {[%clk 0:02:11]}  h5 {[%clk 0:02:40]} 16. Nh4 {[%clk 0:02:03]}  Qg5 {[%clk 0:02:40]} 17. Nf3 {[%clk 0:01:42]}  Qg6 {[%clk 0:02:40]} 18. Nh4 {[%clk 0:01:41]}  Qg5 {[%clk 0:02:40]} 19. Nf3 {[%clk 0:01:28]}  Qg6 {[%clk 0:02:31]} 1/2-1/2


[Site "https://www.chess.com"]

[Event "Titled Tuesday Blitz September 14 2021"]
[White "Mortazavi, Ali"]
[Black "Matlakov, Maxim"]
[WhiteFideId "401323"]
[BlackFideId "4168003"]
[WhiteElo "2339"]
[BlackElo "2652"]
[Result "1-0"]
[Round "02"]
[TimeControl "180+1"]
[Date "2021.09.15"]
[WhiteClock "0:00:49"]
[BlackClock "0:00:22"]

1. Nf3 {[%clk 0:03:00]}  Nf6 {[%clk 0:02:58]} 2. g3 {[%clk 0:03:00]}  b6 {[%clk 0:02:59]} 3. Bg2 {[%clk 0:03:00]}  Bb7 {[%clk 0:02:59]} 4. O-O {[%clk 0:03:01]}  c5 {[%clk 0:02:59]} 5. d3 {[%clk 0:03:02]}  g6 {[%clk 0:02:57]} 6. e4 {[%clk 0:03:02]}  d6 {[%clk 0:02:57]} 7. a4 {[%clk 0:03:02]}  Bg7 {[%clk 0:02:57]} 8. a5 {[%clk 0:03:01]}  O-O {[%clk 0:02:54]} 9. Nc3 {[%clk 0:02:59]}  bxa5 {[%clk 0:02:53]} 10. e5 {[%clk 0:02:53]}  Nd5 {[%clk 0:02:08]} 11. Ne4 {[%clk 0:02:52]}  Nc6 {[%clk 0:02:04]} 12. exd6 {[%clk 0:02:48]}  exd6 {[%clk 0:02:05]} 13. Bg5 {[%clk 0:02:32]}  Qd7 {[%clk 0:02:01]} 14. c4 {[%clk 0:02:26]}  Ndb4 {[%clk 0:02:00]} 15. Nf6+ {[%clk 0:02:20]}  Bxf6 {[%clk 0:01:59]} 16. Bxf6 {[%clk 0:02:21]}  Qf5 {[%clk 0:01:59]} 17. Bc3 {[%clk 0:02:18]}  Qxd3 {[%clk 0:01:39]} 18. Ng5 {[%clk 0:02:02]}  Rfe8 {[%clk 0:00:48]} 19. Qxd3 {[%clk 0:01:26]}  Nxd3 {[%clk 0:00:49]} 20. Rad1 {[%clk 0:01:26]}  Nde5 {[%clk 0:00:45]} 21. Ne4 {[%clk 0:01:18]}  Re6 {[%clk 0:00:40]} 22. Nxd6 {[%clk 0:01:11]}  Rb8 {[%clk 0:00:21]} 23. Nxb7 {[%clk 0:00:57]}  Rxb7 {[%clk 0:00:22]} 24. Bxe5 {[%clk 0:00:51]}  Rxe5 {[%clk 0:00:22]} 25. Bxc6 {[%clk 0:00:51]}  Rxb2 {[%clk 0:00:22]} 26. Rd7 {[%clk 0:00:49]} 1-0


[Site "https://www.chess.com"]

[Event "Titled Tuesday Blitz September 14 2021"]
[White "Nakamura, Hikaru"]
[Black "Herrera Reyes, Jose Antonio"]
[WhiteFideId "2016192"]
[BlackFideId "2274914"]
[WhiteElo "2884"]
[BlackElo "2361"]
[Result "1-0"]
[Round "02"]
[TimeControl "180+1"]
[Date "2021.09.15"]
[WhiteClock "0:00:22"]
[BlackClock "0:00:14"]

1. Nf3 {[%clk 0:03:00]}  Nf6 {[%clk 0:02:59]} 2. b3 {[%clk 0:02:57]}  g6 {[%clk 0:02:56]} 3. Bb2 {[%clk 0:02:57]}  Bg7 {[%clk 0:02:57]} 4. d4 {[%clk 0:02:58]}  d6 {[%clk 0:02:57]} 5. e3 {[%clk 0:02:57]}  O-O {[%clk 0:02:55]} 6. Be2 {[%clk 0:02:56]}  c5 {[%clk 0:02:54]} 7. O-O {[%clk 0:02:54]}  cxd4 {[%clk 0:02:54]} 8. Nxd4 {[%clk 0:02:55]}  Nc6 {[%clk 0:02:53]} 9. Nxc6 {[%clk 0:02:55]}  bxc6 {[%clk 0:02:53]} 10. c4 {[%clk 0:02:56]}  a5 {[%clk 0:02:52]} 11. Nc3 {[%clk 0:02:55]}  Bb7 {[%clk 0:02:50]} 12. Na4 {[%clk 0:02:42]}  Qc7 {[%clk 0:02:46]} 13. c5 {[%clk 0:02:39]}  d5 {[%clk 0:02:44]} 14. Nb6 {[%clk 0:02:36]}  Ra7 {[%clk 0:02:37]} 15. Qc2 {[%clk 0:02:32]}  Nd7 {[%clk 0:02:37]} 16. Bxg7 {[%clk 0:02:25]}  Kxg7 {[%clk 0:02:37]} 17. Qc3+ {[%clk 0:02:20]}  Kg8 {[%clk 0:02:33]} 18. Nxd7 {[%clk 0:02:17]}  Qxd7 {[%clk 0:02:33]} 19. Rfd1 {[%clk 0:02:18]}  Ba6 {[%clk 0:02:30]} 20. Bf3 {[%clk 0:02:17]}  a4 {[%clk 0:02:24]} 21. b4 {[%clk 0:02:16]}  Bb5 {[%clk 0:02:14]} 22. e4 {[%clk 0:02:11]}  e6 {[%clk 0:02:13]} 23. a3 {[%clk 0:02:11]}  Qe7 {[%clk 0:02:08]} 24. exd5 {[%clk 0:02:07]}  exd5 {[%clk 0:02:04]} 25. Re1 {[%clk 0:02:07]}  Qg5 {[%clk 0:02:04]} 26. g3 {[%clk 0:02:01]}  Re7 {[%clk 0:02:00]} 27. h4 {[%clk 0:02:01]}  Rxe1+ {[%clk 0:01:56]} 28. Rxe1 {[%clk 0:02:01]}  Qf5 {[%clk 0:01:56]} 29. Bd1 {[%clk 0:01:49]}  Rd8 {[%clk 0:01:45]} 30. Qd4 {[%clk 0:01:41]}  h5 {[%clk 0:01:42]} 31. Re3 {[%clk 0:01:35]}  Qb1 {[%clk 0:01:31]} 32. Kh2 {[%clk 0:01:29]}  Qa2 {[%clk 0:01:25]} 33. Qf6 {[%clk 0:01:24]}  Rf8 {[%clk 0:01:18]} 34. Bxh5 {[%clk 0:01:22]}  d4 {[%clk 0:01:17]} 35. Re5 {[%clk 0:01:10]}  Bd3 {[%clk 0:00:34]} 36. Kg2 {[%clk 0:00:45]}  Qb1 {[%clk 0:00:28]} 37. Bg4 {[%clk 0:00:33]}  Be4+ {[%clk 0:00:27]} 38. Bf3 {[%clk 0:00:33]}  Bd3 {[%clk 0:00:21]} 39. Bxc6 {[%clk 0:00:28]}  Qf1+ {[%clk 0:00:19]} 40. Kh2 {[%clk 0:00:29]}  Be2 {[%clk 0:00:16]} 41. Bd5 {[%clk 0:00:25]}  Bg4 {[%clk 0:00:16]} 42. Bxf7+ {[%clk 0:00:22]}  Rxf7 {[%clk 0:00:14]} 43. Re8+ {[%clk 0:00:22]}  Kh7 {[%clk 0:00:14]} 44. Rh8# {[%clk 0:00:22]} 1-0


[Site "https://www.chess.com"]